bitfinex-derivatives/quotes_SOLF0:USTF0_20250630
["timestamp","ask_amount","ask_price","bid_price","bid_amount"]
[1751315552798,2.2238,157.15,157.09,3.7095153]
[1751315553403,6.3634,157.13,157.1,6.3642]
[1751315554104,6.3636,157.12,157.1,6.3642]
[1751315554405,2.2238,157.15,157.09,3.7095153]
[1751315554406,2.2238,157.15,157.11,6.364]
[1751315554601,6.3634,157.13,157.09,3.7095153]
[1751315555004,2.2238,157.15,157.1,6.3641]
[1751315555306,6.3635,157.13,157.1,6.3641]
[1751315555507,6.3635,157.13,157.09,3.7095153]
[1751315555805,6.3635,157.13,157.1,6.3643]
[1751315559200,6.3635,157.13,157.11,6.3639]
[1751315559405,6.3629,157.14,157.11,6.3639]
[1751315559807,2.2238,157.15,157.11,6.3639]
[1751315560402,2.2238,157.15,157.1,6.3642]
[1751315562404,6.3636,157.12,157.1,6.3642]
[1751315562610,6.3636,157.12,157.09,6.3646]
[1751315568009,2.2238,157.15,157.09,6.3646]
[1751315568213,6.3643,157.11,157.08,6.365]
[1751315569217,6.3644,157.1,157.07,6.3655]
[1751315572406,6.3649,157.09,157.06,50.7058]
[1751315572706,3.7095153,157.14,157.06,44.34]
[1751315572707,3.7095153,157.12,157.06,44.34]
[1751315572911,3.7095153,157.12,157.06,50.7059]
[1751315574013,6.3654,157.08,157.06,44.34]
[1751315574608,6.3654,157.08,157.06,50.706]
[1751315575109,6.3654,157.08,157.06,6.366]
[1751315575308,3.7095153,157.1,157.01,600.05578727]
[1751315575714,3.7095153,157.1,157.01,594.12]
[1751315576015,6.3662,157.06,157.01,594.12]
[1751315576715,6.3662,157.06,157.03,6.367]
[1751315578516,6.3662,157.06,157.01,594.12]
[1751315578719,6.3659,157.07,157.01,594.12]
[1751315579016,13.83933604,157.14,157.06,3.7095153]
[1751315579320,6.3643,157.11,157.08,6.365]
[1751315579520,98.87956779,157.15,157.08,3.7095153]
[1751315580123,6.3638,157.12,157.08,3.7095153]
[1751315580320,6.3638,157.12,157.09,6.3648]
[1751315581515,102.58908309,157.15,157.07,10.0747153]
[1751315581714,3.7095153,157.13,157.07,6.3652]
[1751315582116,3.7095153,157.13,157.06,44.32]
[1751315582321,3.7095153,157.11,157.06,44.32]
[1751315583422,3.7095153,157.09,157.03,6.3671]
[1751315583618,3.7095153,157.09,157.01,549.82]
[1751315583921,6.3666,157.05,157.02,6.3675]
[1751315584518,6.3662,157.06,157.03,6.3672]
[1751315586121,7.89662074,157.11,157.04,3.7095153]
[1751315586122,3.7095153,157.11,157.04,3.7095153]
[1751315586423,13.92737285,157.14,157.04,3.7095153]
[1751315586424,11.60613604,157.13,157.04,3.7095153]
[1751315586623,6.3646,157.1,157.07,6.3655]
[1751315592325,6.3646,157.1,157.08,6.3652]
[1751315592525,6.3646,157.1,157.06,44.32]
[1751315593030,6.3646,157.1,157.07,6.3653]
[1751315596729,3.7095153,157.13,157.07,6.3653]
[1751315597327,6.3647,157.1,157.07,6.3653]
[1751315598124,112.69650383,157.15,157.06,48.0295153]
[1751315598519,6.364,157.11,157.08,6.365]
[1751315599227,104.79988309,157.15,157.08,6.365]
[1751315599833,6.3644,157.1,157.07,6.3654]
[1751315601135,6.3649,157.09,157.07,6.3654]
[1751315601336,6.3649,157.09,157.06,54.3954153]
[1751315601725,6.3646,157.1,157.06,48.0295153]
[1751315601925,6.3646,157.1,157.07,6.3656]
[1751315602739,6.3648,157.09,157.07,6.3656]
[1751315604233,104.79988309,157.15,157.06,52.4479153]
[1751315604234,6.3644,157.1,157.06,52.4479153]
[1751315604431,100.36528309,157.15,157.06,52.4479153]
[1751315604837,100.36528309,157.15,157.07,6.3654]
[1751315605535,6.3647,157.1,157.07,6.3654]
[1751315606035,6.3648,157.09,157.07,6.3654]
[1751315607334,6.3646,157.1,157.07,6.3654]
[1751315608436,6.3646,157.1,157.08,6.3652]
[1751315610639,6.3648,157.09,157.07,6.3654]
[1751315612341,6.3646,157.1,157.08,6.3652]
[1751315613637,96.65576779,157.15,157.06,52.4479153]
[1751315613941,96.65576779,157.15,157.06,58.39611493]
[1751315614141,96.65576779,157.15,157.09,6.3646]
[1751315615542,6.3641,157.11,157.09,6.3646]
[1751315616441,6.3641,157.11,157.08,6.365]
[1751315617943,6.3637,157.12,157.09,6.3647]
[1751315620348,6.364,157.11,157.09,6.3647]
[1751315622041,6.3637,157.12,157.09,6.3647]
[1751315622248,13.81413604,157.18,157.1,3.7095153]
[1751315622548,2.208,157.18,157.11,44.28]
[1751315622948,6.3622,157.16,157.13,6.3629]
[1751315623345,6.3622,157.16,157.11,44.28]
[1751315624049,6.3622,157.16,157.13,6.3628]
[1751315625747,6.3622,157.16,157.14,6.3627]
[1751315626746,471.7344078,157.15,157.08,9.963e-05]
[1751315626947,3.7144078,157.11,157.03,44.26]
[1751315627148,3.71523399,157.1,157.03,44.26]
[1751315627345,6.3654,157.08,157.04,6.3666]
[1751315627550,3.71523399,157.1,157.04,6.3666]
[1751315627746,6.3658,157.07,157.04,6.3666]
[1751315627941,2.22937466,157.08,157.04,6.3666]
[1751315628146,3.71523399,157.1,157.04,6.3666]
[1751315628147,2.22937466,157.09,157.04,6.3666]
[1751315628545,2.22937466,157.09,157.03,44.26]
[1751315628746,3.71523399,157.1,157.03,44.26]
[1751315629144,3.71523399,157.1,157.06,6.3658]
[1751315629350,2.1784,157.11,157.04,3.71523399]
[1751315629550,8.5424,157.11,157.04,3.71523399]
[1751315629747,2.1784,157.11,157.04,3.71523399]
[1751315629953,3.71523399,157.12,157.04,3.71523399]
[1751315630147,10.07893399,157.12,157.08,6.3648]
[1751315630851,10.07893399,157.12,157.09,6.3647]
[1751315631556,2.1122,157.14,157.09,44.24]
[1751315631557,5.82743399,157.14,157.09,44.24]
[1751315632352,12.19033399,157.14,157.11,6.3638]
[1751315633647,2.1122,157.14,157.12,6.3636]
[1751315635345,2.2561,157.15,157.13,6.3632]
[1751315635652,12.21233399,157.16,157.13,6.3632]
[1751315636347,6.3624,157.15,157.12,6.3634]
[1751315637647,10.54687604,157.14,157.11,6.3638]
[1751315637848,4.18387604,157.13,157.11,6.3638]
[1751315638049,4.18387604,157.15,157.11,6.3638]
[1751315638357,4.18387604,157.14,157.11,6.3638]
[1751315638549,4.18387604,157.13,157.11,6.3638]
[1751315638752,4.18387604,157.12,157.11,6.3638]
[1751315638950,4.18387604,157.15,157.11,6.3638]
[1751315639151,10.54687604,157.14,157.11,6.3638]
[1751315639451,4.18387604,157.13,157.11,6.3638]
[1751315639752,4.18387604,157.12,157.11,6.3638]
[1751315639948,4.18387604,157.13,157.11,6.3638]
[1751315640147,4.18387604,157.12,157.11,6.3638]
[1751315640350,4.18387604,157.13,157.09,44.24]
[1751315640541,4.18387604,157.12,157.09,44.24]
[1751315640748,4.18387604,157.13,157.09,44.24]
[1751315640950,10.54767604,157.12,157.09,50.6047]
[1751315641148,4.18387604,157.13,157.09,44.24]
[1751315641348,4.18387604,157.12,157.09,44.24]
[1751315641550,4.18387604,157.15,157.09,50.6045]
[1751315641751,4.18387604,157.14,157.09,50.6045]
[1751315641951,4.18387604,157.13,157.09,50.6045]
[1751315642157,10.54747604,157.12,157.09,50.6045]
[1751315642456,4.18387604,157.15,157.1,6.3643]
[1751315642656,4.18387604,157.14,157.1,6.3643]
[1751315642858,3.71523399,157.12,157.06,6.3658]
[1751315643051,4.18387604,157.11,157.05,44.24]
[1751315643354,6.3648,157.09,157.05,44.24]
[1751315643555,6.3648,157.09,157.06,6.3658]
[1751315644053,6.3648,157.09,157.06,6.3657]
[1751315644652,6.3652,157.08,157.05,50.6062]
[1751315644851,3.71523399,157.1,157.02,5.86623399]
[1751315645058,4.18387604,157.09,157.02,3.71523399]
[1751315645357,6.3659,157.07,157.04,6.3666]
[1751315645950,10.54977604,157.07,157.04,6.3666]
[1751315646150,10.54977604,157.07,157.02,3.71523399]
[1751315646151,6.3653,157.08,157.05,6.3664]
[1751315646347,10.54917604,157.08,157.05,6.3664]
[1751315646553,6.3653,157.08,157.05,6.3664]
[1751315646849,10.54917604,157.08,157.05,6.3664]
[1751315647054,6.3653,157.08,157.05,6.3664]
[1751315647254,10.54917604,157.08,157.05,6.3664]
[1751315647454,6.3653,157.08,157.05,6.3664]
[1751315647657,10.54917604,157.08,157.05,6.3664]
[1751315647854,4.18387604,157.09,157.02,3.71523399]
[1751315648056,4.18387604,157.09,157.04,3.71523399]
[1751315648253,4.18387604,157.11,157.06,3.71523399]
[1751315648448,4.18387604,157.1,157.09,6.3648]
[1751315648654,4.18387604,157.11,157.06,47.95523399]
[1751315648862,4.18387604,157.1,157.06,47.95523399]
[1751315649054,4.18387604,157.12,157.06,47.95523399]
[1751315649357,4.18387604,157.11,157.08,3.71523399]
[1751315649556,6.363,157.14,157.11,6.3638]
[1751315650759,6.363,157.14,157.12,6.3635]
[1751315650953,6.363,157.14,157.08,3.71523399]
[1751315651359,6.363,157.14,157.11,6.3637]
[1751315651853,6.363,157.14,157.08,3.71523399]
[1751315652057,99.2047095,157.15,157.12,6.3632]
[1751315653161,6.3628,157.14,157.12,6.3632]
[1751315653554,92.8422095,157.15,157.12,6.3632]
[1751315653750,6.3626,157.15,157.13,6.363]
[1751315654162,6.3626,157.15,157.08,3.71523399]
[1751315654351,6.3628,157.14,157.12,6.3633]
[1751315655057,6.3625,157.15,157.12,6.3633]
[1751315655362,6.3625,157.15,157.13,6.3631]
[1751315656255,6.3625,157.15,157.07,4.3672]
[1751315656256,6.362,157.16,157.14,6.3628]
[1751315656455,5.91552403,157.17,157.14,6.3628]
[1751315657053,9.63075802,157.18,157.14,6.3628]
[1751315657667,9.63075802,157.18,157.13,6.363]
[1751315657862,6.3618,157.17,157.1,3.71523399]
[1751315658360,6.3618,157.17,157.14,6.3627]
[1751315658760,6.3621,157.16,157.14,6.3627]
[1751315660260,6.3621,157.16,157.13,6.3631]
[1751315660460,6.3624,157.15,157.1,3.71523399]
[1751315660765,9.63075802,157.18,157.1,3.71523399]
[1751315660966,3.71523399,157.16,157.07,4.3672]
[1751315661169,5.91552403,157.17,157.08,3.71523399]
[1751315661362,3.71523399,157.17,157.08,3.71523399]
[1751315661562,3.71523399,157.17,157.11,6.3637]
[1751315661968,129.63552403,157.18,157.11,6.3637]
[1751315662165,6.363,157.14,157.11,6.3637]
[1751315664065,4.19950622,157.16,157.08,47.93523399]
[1751315664066,4.19950622,157.15,157.08,47.93523399]
[1751315664266,4.19950622,157.14,157.08,44.22]
[1751315664469,3.71523399,157.15,157.08,44.22]
[1751315664470,4.19950622,157.13,157.08,44.22]
[1751315664664,6.3639,157.12,157.09,6.3645]
[1751315666673,6.3639,157.12,157.1,6.3643]
[1751315666874,10.56340622,157.12,157.08,44.22]
[1751315667176,6.3639,157.12,157.08,44.22]
[1751315667566,4.19950622,157.14,157.08,44.22]
[1751315667771,4.19950622,157.13,157.08,44.22]
[1751315667973,4.19950622,157.12,157.08,44.22]
[1751315668173,4.19950622,157.14,157.08,50.585]
[1751315668369,6.3642,157.11,157.08,44.22]
[1751315668577,6.3642,157.11,157.09,6.3646]
[1751315668874,6.3638,157.12,157.09,6.3646]
[1751315669269,10.56330622,157.12,157.09,6.3646]
[1751315669474,6.3638,157.12,157.09,6.3646]
[1751315669876,10.56330622,157.12,157.09,6.3646]
[1751315670175,6.3638,157.12,157.09,6.3646]
[1751315670578,10.56330622,157.12,157.09,6.3646]
[1751315670778,6.3638,157.12,157.09,6.3646]
[1751315671278,10.56330622,157.12,157.09,6.3646]
[1751315671579,4.19950622,157.14,157.1,6.3641]
[1751315671780,4.19950622,157.13,157.1,6.3641]
[1751315671983,14.06935802,157.15,157.1,6.3641]
[1751315672680,9.63075802,157.15,157.11,6.3639]
[1751315672876,6.363,157.14,157.11,6.3639]
[1751315673378,6.3626,157.15,157.12,6.3635]
[1751315673787,5.91552403,157.16,157.12,6.3635]
[1751315674680,6.3628,157.14,157.12,6.3635]
[1751315676586,6.3625,157.15,157.12,6.3635]
[1751315676983,4.17598982,157.14,157.12,6.3635]
[1751315677187,4.17681733,157.14,157.1,3.71523399]
[1751315677388,4.17681733,157.16,157.12,3.71523399]
[1751315677587,4.17681733,157.18,157.12,3.71523399]
[1751315677786,4.17681733,157.17,157.13,44.22]
[1751315677987,4.17681733,157.16,157.13,44.22]
[1751315678186,6.3617,157.17,157.14,6.3625]
[1751315679077,5.91552403,157.19,157.14,6.3625]
[1751315679276,6.362,157.16,157.13,50.583]
[1751315679488,6.362,157.16,157.13,44.22]
[1751315679685,6.3612,157.18,157.13,44.22]
[1751315679989,3.71523399,157.19,157.13,44.22]
[1751315680190,6.3613,157.18,157.13,44.22]
[1751315680388,6.3613,157.18,157.15,6.3621]
[1751315680790,6.3613,157.18,157.13,44.22]
[1751315680989,6.3613,157.18,157.15,6.362]
[1751315681689,6.3613,157.18,157.16,6.3619]
[1751315682190,6.3613,157.18,157.15,6.3621]
[1751315682487,6.3613,157.18,157.13,44.22]
[1751315682688,6.3613,157.18,157.15,6.362]
[1751315684889,6.3613,157.18,157.16,6.3619]
[1751315685295,5.91552403,157.22,157.13,47.93523399]
[1751315685591,9.63075802,157.23,157.17,6.3613]
[1751315686294,6.3605,157.2,157.17,6.3613]
[1751315687093,6.3605,157.2,157.18,6.3611]
[1751315703196,3.71523399,157.23,157.17,6.3613]
[1751315703503,3.71523399,157.19,157.13,44.22]
[1751315703703,3.71523399,157.17,157.13,44.22]
[1751315703902,2.37575579,157.15,157.13,44.22]
[1751315704298,6.3616,157.17,157.14,6.3627]
[1751315704503,2.37575579,157.16,157.14,6.3627]
[1751315704898,6.3616,157.17,157.14,6.3627]
[1751315704899,8.73735579,157.17,157.14,6.3627]
[1751315705293,6.3613,157.18,157.14,2.37575579]
[1751315705699,2.37575579,157.18,157.13,46.59575579]
[1751315705899,6.3618,157.17,157.13,44.22]
[1751315707202,6.3613,157.18,157.13,44.22]
[1751315707404,3.71081819,157.2,157.13,44.22]
[1751315707604,3.71081819,157.2,157.13,47.93081819]
[1751315708406,6.3614,157.18,157.16,6.3617]
[1751315708709,3.71081819,157.2,157.16,6.3617]
[1751315709303,6.3609,157.19,157.16,6.3617]
[1751315709911,6.3609,157.19,157.17,6.3615]
[1751315710808,16.32634222,157.24,157.15,3.71081819]
[1751315712413,6.3601,157.21,157.18,6.3609]
[1751315713410,94.92425696,157.26,157.18,6.3609]
[1751315713411,100.83978099,157.26,157.18,3.71081819]
[1751315713610,44.2,157.29,157.22,3.71081819]
[1751315714015,50.11552403,157.29,157.24,6.3585]
[1751315714217,5.91552403,157.28,157.24,6.3585]
[1751315714413,50.11552403,157.29,157.24,6.3585]
[1751315715007,50.11552403,157.29,157.22,3.71081819]
[1751315715008,50.11552403,157.29,157.23,6.3589]
[1751315715717,3.71081819,157.28,157.23,6.3589]
[1751315716216,6.3582,157.26,157.23,6.3589]
[1751315716611,3.71081819,157.28,157.23,6.3589]
[1751315716812,9.62634222,157.28,157.23,6.3589]
[1751315718416,6.3583,157.26,157.23,6.3589]
[1751315720016,6.3583,157.26,157.2,3.71081819]
[1751315720312,50.11552403,157.29,157.2,3.71081819]
[1751315720506,50.11552403,157.29,157.24,6.3584]
[1751315720709,50.11552403,157.29,157.22,3.71081819]
[1751315720909,6.358,157.26,157.22,3.71081819]
[1751315721216,6.358,157.26,157.21,2.124]
[1751315721409,6.358,157.26,157.21,5.83481819]
[1751315721718,6.3577,157.27,157.24,6.3585]
[1751315722516,12.46302403,157.3,157.23,3.71081819]
[1751315723019,12.46302403,157.3,157.25,6.3579]
[1751315723523,6.3575,157.28,157.25,6.3579]
[1751315723822,12.46302403,157.3,157.25,6.3579]
[1751315724320,12.46302403,157.3,157.23,3.71081819]
[1751315724721,12.46302403,157.3,157.26,6.3575]
[1751315724917,6.5475,157.3,157.26,6.3575]
[1751315725318,6.5475,157.3,157.25,6.3581]
[1751315726318,130.0875,157.3,157.25,6.3581]
[1751315727720,130.0875,157.3,157.23,3.71081819]
[1751315727916,6.3574,157.28,157.23,3.71081819]
[1751315728118,6.3574,157.28,157.25,6.358]
[1751315728514,6.3574,157.28,157.23,3.71081819]
[1751315729423,6.3574,157.28,157.25,6.3581]
[1751315729922,6.3576,157.27,157.25,6.3581]
[1751315731423,6.3573,157.28,157.23,3.71081819]
[1751315731926,6.3573,157.28,157.25,6.3581]
[1751315735324,6.3576,157.27,157.25,6.3581]
[1751315737019,6.3573,157.28,157.25,6.3581]
[1751315737224,6.3573,157.28,157.26,6.3578]
[1751315737422,130.0875,157.3,157.23,3.71081819]
[1751315737624,6.3571,157.28,157.23,3.71081819]
[1751315738232,6.3575,157.27,157.25,6.3581]
[1751315745435,6.3573,157.28,157.26,6.3579]
[1751315750740,6.3573,157.28,157.26,8.72930095]
[1751315750940,6.3573,157.28,157.26,2.37140095]
[1751315753043,6.3568,157.29,157.26,2.37140095]
[1751315753245,2.37140095,157.31,157.27,2.37140095]
[1751315753447,2.37140095,157.3,157.26,6.3577]
[1751315753639,6.3569,157.29,157.26,2.37140095]
[1751315753834,6.3569,157.29,157.23,44.14]
[1751315754138,6.3569,157.29,157.26,2.37140095]
[1751315754342,2.37140095,157.31,157.26,2.37140095]
[1751315754544,2.37140095,157.31,157.27,2.37140095]
[1751315755445,8.27265735,157.31,157.27,2.37140095]
[1751315755641,6.3565,157.3,157.27,2.37140095]
[1751315756035,6.3568,157.29,157.23,44.14]
[1751315756240,6.3568,157.29,157.26,2.37140095]
[1751315756543,6.3565,157.3,157.27,6.3573]
[1751315758345,6.3567,157.29,157.27,6.3573]
[1751315759348,6.3567,157.29,157.26,8.72920095]
[1751315762554,5.64e-05,157.3,157.29,6.3567]
[1751315762752,2.36943739,157.37,157.29,46.46943739]
[1751315762952,2.36943739,157.38,157.33,2.36943739]
[1751315763251,6.3541,157.36,157.33,2.36943739]
[1751315763654,6.3541,157.36,157.33,8.72384428]
[1751315763947,2.36914428,157.37,157.31,3.70178388]
[1751315763948,6.3537,157.37,157.31,3.70178388]
[1751315764352,6.3537,157.37,157.34,6.3547]
[1751315765350,3.70178388,157.37,157.29,44.1]
[1751315765552,3.70178388,157.35,157.29,44.1]
[1751315765956,6.355,157.34,157.31,6.3559]
[1751315766256,6.355,157.34,157.29,47.80178388]
[1751315766458,6.3545,157.35,157.32,6.3554]
[1751315766645,11.57012575,157.39,157.31,3.70178388]
[1751315766850,6.354,157.36,157.33,6.3548]
[1751315767152,3.70178388,157.39,157.33,6.3548]
[1751315767353,6.3545,157.35,157.32,6.3553]
[1751315767557,11.57012575,157.39,157.31,3.70178388]
[1751315767854,11.57012575,157.39,157.31,6.3556]
[1751315767855,3.70178388,157.37,157.31,6.3556]
[1751315768759,7.86834187,157.4,157.35,3.70178388]
[1751315769056,44.1,157.42,157.35,3.70178388]
[1751315769256,6.3523,157.4,157.35,3.70178388]
[1751315769557,44.1,157.42,157.36,6.3536]
[1751315769856,6.3528,157.39,157.36,6.3536]
[1751315770058,44.1,157.42,157.35,3.70178388]
[1751315770754,44.1,157.42,157.38,6.353]
[1751315771153,6.3523,157.4,157.38,6.353]
[1751315771355,6.3523,157.4,157.37,6.3534]
[1751315774163,6.3527,157.39,157.37,6.3534]
[1751315777657,3.70178388,157.39,157.29,44.08]
[1751315777859,44.1,157.42,157.29,47.78178388]
[1751315777860,3.70178388,157.37,157.29,47.78178388]
[1751315778163,3.70178388,157.36,157.29,47.78178388]
[1751315780260,6.3553,157.33,157.3,6.3561]
[1751315780457,3.70178388,157.36,157.29,47.78178388]
[1751315780663,6.3557,157.32,157.29,54.13828388]
[1751315781162,6.3557,157.32,157.29,50.4365]
[1751315783558,6.3552,157.33,157.3,6.3562]
[1751315783763,6.3552,157.33,157.29,44.08]
[1751315784659,6.3549,157.34,157.29,47.78178388]
[1751315784859,3.70178388,157.36,157.29,47.78178388]
[1751315785066,3.70178388,157.36,157.31,6.3559]
[1751315785762,6.3553,157.33,157.3,6.3561]
[1751315789866,6.3557,157.32,157.29,44.08]
[1751315791570,6.3557,157.32,157.3,6.3563]
[1751315792664,3.70178388,157.32,157.24,2.0515]
[1751315792871,3.70178388,157.3,157.22,552.94178388]
[1751315793265,6.3572,157.28,157.25,6.358]
[1751315793773,2.37170332,157.29,157.25,8.72970332]
[1751315794569,6.3575,157.27,157.25,2.37170332]
[1751315795776,6.3575,157.27,157.24,6.3585]
[1751315796677,6.3575,157.27,157.25,6.3582]
[1751315797779,6.3573,157.28,157.25,6.3582]
[1751315798178,3.70574483,157.31,157.22,549.24]
[1751315798380,6.359,157.24,157.21,44.06]
[1751315798775,6.359,157.24,157.21,50.4197]
[1751315802180,6.3585,157.25,157.22,6.3595]
[1751315803782,6.3587,157.24,157.21,50.4198]
[1751315806288,6.3587,157.24,157.22,6.3595]
[1751315806485,6.3584,157.25,157.22,6.3595]
[1751315807492,6.3584,157.25,157.21,44.06]
[1751315807791,6.3588,157.24,157.21,44.06]
[1751315807991,6.3588,157.24,157.21,50.4196]
[1751315808692,6.3588,157.24,157.22,6.3595]
[1751315809390,6.3585,157.25,157.22,6.3595]
[1751315812193,6.358,157.26,157.21,47.76574483]
[1751315812492,3.70574483,157.26,157.21,44.06]
[1751315812694,6.3595,157.22,157.21,44.06]
[1751315812893,6.3595,157.22,157.19,6.3604]
[1751315814793,6.3598,157.22,157.19,6.3604]
[1751315815095,6.3598,157.22,157.2,6.3602]
[1751315820501,6.3593,157.23,157.2,6.3602]
[1751315820698,3.70574483,157.26,157.2,6.3602]
[1751315822000,6.3596,157.22,157.2,6.3602]
[1751315822202,3.70574483,157.26,157.2,6.3602]
[1751315822499,6.3594,157.23,157.2,6.3602]
[1751315822702,3.70574483,157.26,157.19,6.3606]
[1751315823203,6.3597,157.22,157.19,6.3606]
[1751315824603,3.70574483,157.26,157.18,6.361]
[1751315824804,3.70574483,157.24,157.17,44.08]
[1751315825404,6.3606,157.2,157.17,50.4413]
[1751315825903,6.3606,157.2,157.18,2.37383555]
[1751315827605,6.3606,157.2,157.18,8.73483555]
[1751315827802,6.3606,157.2,157.18,6.361]
[1751315829408,6.3606,157.2,157.17,50.4414]
[1751315830006,6.3606,157.2,157.18,6.3611]
[1751315831312,6.3601,157.21,157.19,6.3607]
[1751315831507,6.3601,157.21,157.17,44.08]
[1751315831912,6.3604,157.2,157.18,6.361]
[1751315832411,6.3604,157.2,157.17,44.08]
[1751315833207,6.3602,157.21,157.18,6.3609]
[1751315835412,6.3598,157.22,157.18,3.70894041]
[1751315835609,3.70952575,157.2,157.14,5.91926386]
[1751315835812,6.3612,157.18,157.15,6.3621]
[1751315836018,3.71126946,157.21,157.15,6.3621]
[1751315836406,6.3617,157.17,157.12,3.71126946]
[1751315836708,5.90022513,157.23,157.16,3.71126946]
[1751315836902,4.2185,157.24,157.18,3.71126946]
[1751315838213,6.3602,157.21,157.18,3.71126946]
[1751315839015,6.3602,157.21,157.18,10.07236946]
[1751315840014,6.3602,157.21,157.18,6.3611]
[1751315841417,6.3602,157.21,157.16,47.79126946]
[1751315841909,6.3602,157.21,157.18,6.3609]
[1751315842511,6.3602,157.21,157.16,47.79126946]
[1751315842716,6.3604,157.2,157.16,47.79126946]
[1751315843514,6.3604,157.2,157.17,6.3615]
[1751315843716,6.3604,157.2,157.16,47.79126946]
[1751315844611,6.3604,157.2,157.18,6.361]
[1751315844808,6.3601,157.21,157.18,6.361]
[1751315846922,4.2185,157.24,157.19,3.71126946]
[1751315847116,2.2652,157.25,157.21,3.71126946]
[1751315847516,6.3593,157.23,157.21,3.71126946]
[1751315848621,6.3593,157.23,157.21,10.07116946]
[1751315850519,6.3589,157.24,157.21,10.07116946]
[1751315850820,6.3589,157.24,157.22,6.3595]
[1751315851930,6.3589,157.24,157.21,10.07096946]
[1751315852324,6.3592,157.23,157.21,10.07096946]
[1751315853328,6.3587,157.24,157.22,6.3595]
[1751315853532,6.3587,157.24,157.21,3.71126946]
[1751315853719,2.2652,157.25,157.21,3.71126946]
[1751315854029,6.3589,157.24,157.21,10.07096946]
[1751315855029,6.3589,157.24,157.22,6.3595]
[1751315855526,6.3589,157.24,157.21,3.71126946]
[1751315856029,6.3589,157.24,157.21,10.07096946]
[1751315856231,6.3592,157.23,157.21,6.3597]
[1751315861740,6.3592,157.23,157.22,2.37255631]
[1751315863339,6.3597,157.22,157.21,2.37255631]
[1751315865442,2.37255631,157.22,157.17,2.37255631]
[1751315865642,2.37255631,157.22,157.18,8.73345631]
[1751315866542,6.36,157.21,157.18,8.73345631]
[1751315866738,6.36,157.21,157.19,2.37255631]
[1751315867848,6.36,157.21,157.18,6.3609]
[1751315868644,6.3603,157.2,157.18,6.3609]
[1751315869544,6.3601,157.21,157.18,6.3609]
[1751315869743,2.1846,157.24,157.18,6.3609]
[1751315870050,6.3603,157.21,157.18,6.3609]
[1751315871148,6.3603,157.21,157.19,6.3606]
[1751315871347,6.3597,157.22,157.19,3.70833937]
[1751315871848,6.3597,157.22,157.2,6.3603]
[1751315872342,6.3597,157.22,157.19,10.06883937]
[1751315872548,6.3597,157.22,157.19,3.70833937]
[1751315873549,6.3597,157.22,157.2,6.3602]
[1751315873848,6.3597,157.22,157.19,3.70833937]
[1751315874150,6.3597,157.22,157.19,10.06883937]
[1751315874645,6.3597,157.22,157.19,6.3605]
[1751315874850,6.36,157.21,157.19,6.3605]
[1751315876653,6.3597,157.22,157.19,6.3605]
[1751315877253,6.3597,157.22,157.2,6.3603]
[1751315881458,6.3593,157.23,157.18,3.70833937]
[1751315881658,5.90022513,157.26,157.2,3.70833937]
[1751315881854,12.25034187,157.28,157.22,3.70833937]
[1751315881855,10.28222513,157.28,157.22,3.70833937]
[1751315882053,6.3577,157.27,157.22,3.70833937]
[1751315882461,5.90022513,157.28,157.22,3.70833937]
[1751315883760,6.358,157.26,157.24,6.3585]
[1751315887265,6.3576,157.27,157.25,6.3583]
[1751315887466,5.90022513,157.29,157.22,3.70833937]
[1751315889567,6.3585,157.25,157.23,6.359]
[1751315890066,6.3575,157.27,157.24,6.3583]
[1751315890266,7.96572513,157.3,157.24,6.3583]
[1751315890866,7.96572513,157.3,157.25,6.358]
[1751315891365,6.3573,157.28,157.25,6.358]
[1751315892966,6.3573,157.28,157.26,6.3579]
[1751315894668,6.3573,157.28,157.25,6.3581]
[1751315894871,6.3576,157.27,157.25,6.3581]
[1751315895769,6.3579,157.26,157.24,10.06683937]